Cogmind - Beta 15 @@@ ROGUE MODE // 2025.07.21 @ 18:18:23 Player: Waste Result: Destroyed by XP-JH8(R) with Subdweller Machine Gun Performance ------------- Evolutions (0) 0 Regions Visited (2) 400 Robots Destroyed (12) 60 Value Destroyed (397) 397 Prototype IDs (0) 0 Alien Tech Used (0) 0 Bonus (0) 0 TOTAL SCORE: 857 Bonus ------- None Cogmind --------- Core Integrity 0/250 Matter 263/300 Energy 100/100 System Corruption 0% Temperature Cool (6) Movement Treading (240) Ox1 Location -10/Subcaves Parts ------- > --- POWER (1) -------- Subdweller Power Source > --- PROPULSION (2) --- Light Treads > --- UTILITY (2) ------ Large Storage Unit Makeshift Light Armor Plating > --- WEAPON (2) ------- Subdweller Machine Gun Subdweller Machine Gun > --- INVENTORY (15) --- Aluminum Leg Wheel Compact Wheel Utility Shielding Medium Laser Medium Laser Subdweller Laser Light Assault Rifle Light Assault Rifle Battle Rifle Battle Cannon Battle Cannon Grenade Launcher Grenade Launcher Grenade Launcher Peak State ------------ > --- POWER ------------ Subdweller Power Source > --- PROPULSION ------- Light Treads Light Treads > --- UTILITY ---------- Large Storage Unit Makeshift Light Armor Plating > --- WEAPON ----------- Subdweller Machine Gun Subdweller Machine Gun > --- INVENTORY -------- Aluminum Leg Wheel Compact Wheel Utility Shielding Medium Laser Medium Laser Subdweller Laser Light Assault Rifle Light Assault Rifle Battle Rifle Battle Cannon Battle Cannon Grenade Launcher Grenade Launcher Grenade Launcher [Rating: 14] Favorites ----------- Power Ion Engine Engine Ion Engine Propulsion Light Treads Treads Light Treads Leg Aluminum Leg Utility Large Storage Unit Device Improved Heat Sink Storage Large Storage Unit Protection Makeshift Light Armor Plating Weapon Subdweller Machine Gun Energy Gun Particle Gun Ballistic Gun Subdweller Machine Gun Build | -11 -10 -10 ------- Run | Yrd Mat Sub Slots Evolved . | . . . Power . | . . . Propulsion . | . . . Utility . | . . . Weapon . | . . . Parts Attached 12 | . 4 8 Power 2 | . . 2 Engine 2 | . . 2 Core . | . . . Reactor . | . . . Propulsion 3 | . 1 2 Treads 2 | . . 2 Leg 1 | . 1 . Wheel . | . . . Hover . | . . . Flight . | . . . Utility 3 | . 2 1 Device 1 | . 1 . Storage 1 | . 1 . Processor . | . . . Hackware . | . . . Protection 1 | . . 1 Artifact . | . . . Weapon 4 | . 1 3 Energy Gun 1 | . 1 . Energy Cannon . | . . . Ballistic Gun 3 | . . 3 Ballistic Cannon . | . . . Launcher . | . . . Special Weapon . | . . . Impact Weapon . | . . . Slashing Weapon . | . . . Piercing Weapon . | . . . Special Melee Weapon . | . . . Unidentified Prototypes . | . . . Parts Lost 6 | . . 6 Power 2 | . . 2 Propulsion 3 | . . 3 Utility . | . . . Weapon 1 | . . 1 Highest Loss Streak 3 | . . 3 To Critical Strikes . | . . . Average Backups 13 | . 9 14 Power . | . 1 . Propulsion 3 | . 4 3 Utility . | . . 1 Weapon 8 | . 3 10 Tool/Special . | . . . Unused Backups 18 | . 4 14 Power . | . . . Propulsion 3 | . 2 1 Utility 3 | . 2 1 Weapon 12 | . . 12 Tool/Special . | . . . Average Slot Usage (%) 99 | . 96 99 Engine 13 | . 14 13 Treads 18 | . . 24 Leg 9 | . 28 3 Device 11 | . 11 11 Storage 14 | . 14 14 Protection 2 | . . 2 Energy Gun 4 | . 11 2 Ballistic Gun 23 | . 17 26 Peak Build Rating 14 | . 11 14 Average Rating 11 | . 9 12 On Entrance 7 | 6 6 11 Naked Turns . | . . . Heaviest Build 37 | 12 30 37 Greatest Support 40 | 20 20 40 Greatest Overweight (x) 1 | . 1 1 Average Overweight (x) . | . . . Largest Inventory Capacity 15 | . 15 15 Average Capacity 14 | . 12 15 Most Carried 15 | . 14 15 Average Carried 13 | . 9 14 Final Capacity 15 | 8 15 15 Final Carried 15 | 6 14 15 Class Distribution -------------------- 100% | Mutant Dominant Class ---------------- Mutant | -10/Materials Mutant | -10/Subcaves Resources | -11 -10 -10 ----------- Run | Yrd Mat Sub Matter Collected 406 | 200 71 135 Remotely . | . . . Salvage Created 360 | . 118 242 Parts 29 | . 9 20 Haulers Intercepted . | . . . Recyclers Shooed 1 | . 1 . Parts Field Recycled . | . . . Retrieved Matter . | . . . Parts Self-Destructed 8 | . . 8 Prevented . | . . . Kills | -11 -10 -10 ------- Run | Yrd Mat Sub Combat Hostiles Destroyed 11 | . 4 7 Guns 11 | . 4 7 Classes Destroyed 4 | . 3 1 Operator 1 | . 1 . Swarmer 2 | . 2 . Grunt 2 | . 2 . Subdweller 7 | . . 7 Best Kill Streak 2 | . 1 2 Combat Bots Only 2 | . 1 2 Max Kills in Single Turn 1 | . 1 1 Gunslinging . | . . . Exploded . | . . . Melee . | . . . Uniques/NPCs Destroyed . | . . . Combat | -11 -10 -10 -------- Run | Yrd Mat Sub Hostile Shots Fired 102 | . 37 65 Missed 33 | . 12 21 Hits 69 | . 25 44 Projectile 69 | . 25 44 Critical Strikes 1 | . . 1 Damage Taken 1209 | . 270 939 Core 258 | . 88 170 Absorbed by Shields . | . . . Core Remaining (%) 100 | 100 . . Volleys Fired 64 | . 24 40 Largest 2 | . 2 2 Hottest 85 | . 85 85 Shots Fired 127 | . 48 79 Gun 127 | . 48 79 Cannon . | . . . Launcher . | . . . Special . | . . . Kinetic 100 | . 36 64 Thermal 27 | . 12 15 Explosive . | . . . Electromagnetic . | . . . Robot Hit Streak 14 | . 7 14 Robot Miss Streak 2 | . 2 1 Penetration Max . | . . . Secondary Targets 2 | . . 2 Max Gunslinging Chain 1 | . . 1 Shots Hit Robots 84 | . 31 53 Core Hits 24 | . 9 15 Critical Kills 1 | . . 1 Critical Parts Destroyed . | . . . Critical Strikes 2 | . . 2 Burn 1 | . . 1 Destroy 1 | . . 1 Melee Attacks . | . . . Impact . | . . . Slashing . | . . . Piercing . | . . . Sneak Attacks . | . . . Combat Hostiles . | . . . Follow-up Attacks . | . . . Damage Inflicted 1227 | . 325 902 Guns 1217 | . 315 902 Cannons . | . . . Explosions . | . . . Melee . | . . . Ramming 10 | . 10 . Kinetic 828 | . 159 669 Thermal 389 | . 156 233 Explosive . | . . . Electromagnetic . | . . . Impact . | . . . Slashing . | . . . Piercing . | . . . Highest Corruption . | . . . Average Corruption . | . . . Corruption Purged . | . . . Corruption Blocked . | . . . Overload Shots . | . . . Overflow Damage . | . . . Projectiles . | . . . Explosions . | . . . Melee . | . . . Knockbacks . | . . . Impact . | . . . Kinetic . | . . . Secondary . | . . . Self-Inflicted Damage . | . . . Shots . | . . . Rammed . | . . . Targets Rammed 1 | . 1 . Kicked 1 | . 1 . Crushed . | . . . Highest Temperature 44 | . 44 . Average Temperature 17 | . 17 . Received Heat Transfer 297 | . 108 189 Siege Activations . | . . . Martial Activations . | . . . Shielding Activations . | . . . Robots Disrupted . | . . . Combat Hostiles . | . . . Robots Corrupted . | . . . Combat Hostiles . | . . . Parts Fried . | . . . Impact Corruptions . | . . . Robots Melted . | . . . Combat Hostiles . | . . . Parts Melted 2 | . 2 . Heat Transferred 962 | . 370 592 Parts Sabotaged . | . . . Parts Stolen . | . . . Parts Stripped . | . . . Power Chain Reactions . | . . . Alert | -11 -10 -10 ------- Run | Yrd Mat Sub Maximum Alert Level . | . . . Low Security (%) 100 | . 100 . Level 1 . | . . . Level 2 . | . . . Level 3 . | . . . Level 4 . | . . . Level 5 . | . . . High Security . | . . . Max Security . | . . . Peak Influence 60 | . 60 . Initial . | . . . Average 16 | . 16 . Influence Increases 125 | . 125 . Destroy 0b10 Robot/C 80 | . 80 . Destroy 0b10 Robot/NC 5 | . 5 . Destroy Leader 10 | . 10 . Lose Combat Pursuer 30 | . 30 . Influence Decreases 125 | . 125 . Time Decay 125 | . 125 . Squads Dispatched 1 | . 1 . Investigation . | . . . Extermination . | . . . Reinforcement 1 | . 1 . Assault . | . . . Garrison . | . . . Intercept . | . . . Searches Triggered . | . . . Construction Impeded . | . . . Haulers Reinforced . | . . . Active Scanning Responses . | . . . Cargo Convoy Interrupts . | . . . Stealth | -11 -10 -10 --------- Run | Yrd Mat Sub Distress Signals 3 | . 3 . Communications Jammed . | . . . Distress Signals . | . . . Times Spotted 22 | . 12 10 Peak Tracking Total 3 | . 3 2 Tactical Retreats 2 | . 2 . Traps | -11 -10 -10 ------- Run | Yrd Mat Sub Traps Triggered 1 | . . 1 Indirectly . | . . . Trap Hack Attempts . | . . . Triggered . | . . . Disarmed . | . . . Reprogrammed . | . . . Reused . | . . . Traps Extracted . | . . . Installed . | . . . Triggered . | . . . Machines | -11 -10 -10 ---------- Run | Yrd Mat Sub Machines Disabled . | . . . Max in Single Turn . | . . . Machines Repaired . | . . . Machines Dismantled . | . . . Machines Sabotaged . | . . . Overloaded Fab Kills . | . . . Hacking | -11 -10 -10 --------- Run | Yrd Mat Sub Machines Accessed 2 | . 1 1 Terminals 1 | . 1 . Fabricators . | . . . Repair Stations . | . . . Recycling Units . | . . . Scanalyzers . | . . . Garrison Access . | . . . Total Hacks 7 | . 2 5 Successful 5 | . . 5 Failed 2 | . 2 . Catastrophic 1 | . 1 . Database Lockouts . | . . . Manual 2 | . 2 . Terminals 2 | . 2 . Fabricators . | . . . Repair Stations . | . . . Recycling Units . | . . . Scanalyzers . | . . . Garrison Access . | . . . Terminal Hacks 5 | . . 5 Record 5 | . . 5 Fabricator Hacks . | . . . Repair Station Hacks . | . . . Recycling Unit Hacks . | . . . Scanalyzer . | . . . Garrison Access Hacks . | . . . Unauthorized Hacks . | . . . Terminals . | . . . Fabricators . | . . . Repair Stations . | . . . Recycling Units . | . . . Scanalyzers . | . . . Garrison Access . | . . . Data Cores Recovered 1 | . 1 . Used . | . . . Hacking Detections 1 | . 1 . Full Trace Events . | . . . Feedback Events . | . . . Feedback Blocked . | . . . Robot Schematics Acquired . | . . . Robots Built . | . . . Authchips . | . . . Time . | . . . Total Robot Build Rating . | . . . Part Schematics Acquired . | . . . Parts Built . | . . . Authchips . | . . . Time . | . . . Total Part Build Rating . | . . . Parts Repaired . | . . . Time . | . . . Parts Recycled . | . . . Recycled Matter . | . . . Retrieved Matter . | . . . Retrieved Components . | . . . Parts Scanalyzed . | . . . Part Schematics Acquired . | . . . Parts Damaged . | . . . Bothacking | -11 -10 -10 ------------ Run | Yrd Mat Sub Used RIF Installer . | . . . Robots Hacked . | . . . Non-combat . | . . . Combat . | . . . Robot Hacks Applied . | . . . Relay Couplers Released . | . . . Fabnet Peak Effective % . | . . . Robots Rewired . | . . . Allies Hacked . | . . . Hacks Repelled . | . . . Allies | -11 -10 -10 -------- Run | Yrd Mat Sub Total Allies . | . . . Largest Group . | . . . Highest-Rated Group . | . . . Highest-Rated Ally . | . . . Total Orders . | . . . Ally Attacks . | . . . Total Damage . | . . . Kills . | . . . Allies Corrupted . | . . . Allies Melted . | . . . Intel | -11 -10 -10 ------- Run | Yrd Mat Sub Active Infowar (turns) . | . . . Robot Analysis Total . | . . . Derelict Logs Recovered 2 | . . 2 Drone Launches . | . . . Drone Recoveries . | . . . Exploration | -11 -10 -10 ------------- Run | Yrd Mat Sub Turns Passed 1741 | . 418 1323 Spaces Moved 904 | 1 196 707 Core . | . . . Treads 654 | . . 654 Legs 250 | 1 196 53 Wheels . | . . . Hover . | . . . Flight . | . . . Fastest Speed 120 | 120 120 160 Average Speed 162 | 120 163 162 Slowest Speed 190 | 120 190 190 Overloaded Moves . | . . . Propulsion Burnouts . | . . . Robots Hopped . | . . . Potential Cave-ins . | . . . Cave-ins Triggered . | . . . Exploration Rate (%) 26 | 2 33 43 Regions Visited 2 Branch Regions 1 Pre-discovered Areas 2 | . . 2 Known Exits Taken . | . . . Unknown Exits Taken 2 | 1 1 . Scrap Searched 5 | . . 5 Spaces Dug . | . . . Terrain Destroyed . | . . . Melee . | . . . Projectile . | . . . AOE . | . . . Terrain Rammed . | . . . Walls Destroyed . | . . . Machines Disabled . | . . . Actions | -11 -10 -10 --------- Run | Yrd Mat Sub Total 1059 | . 252 807 Wait 62 | . 18 44 Move 902 | . 195 707 Hop . | . . . Pick Up 14 | . 8 6 Fast Attach 2 | . 1 1 Attach 4 | . . 4 Detach . | . . . Swap 6 | . 3 3 Drop 4 | . 2 2 Fire 64 | . 24 40 Melee . | . . . Ram . | . . . Kick 1 | . 1 . Crush . | . . . Escape Stasis . | . . . Rewire . | . . . Trap . | . . . Miscellaneous . | . . . Route ------- -11/Scrapyard -10/Materials (discovered 2 exits: [*Min] / *Sub) -10/Subcaves (discovered 1 exit: [*Mat]) History --------- Turn | Location | Event 1 | -11/Scrapyard | Discovered new exit (range 0) 1 | -11/Scrapyard | Entered Materials 305 | -10/Materials | Build established: Mutant 370 | -10/Materials | Discovered new exit (range 12) 400 | -10/Materials | Discovered new exit (range 11) 419 | -10/Materials | Entered Subcaves 557 | -10/Subcaves | Core integrity fell below 50% 593 | -10/Subcaves | Lost 3 parts (1p2n) 617 | -10/Subcaves | Discovered new exit (range 6) 676 | -10/Subcaves | Learned 2 Materials zone layouts 685 | -10/Subcaves | Shifting Twisted Machinery released Sub. Machine Gun 719 | -10/Subcaves | Shifting Twisted Machinery released Shrapnel Trap 738 | -10/Subcaves | Visited Clippyterm 742 | -10/Subcaves | Learned Factory trap positions 742 | -10/Subcaves | Learned Factory garrison access intel 1267 | -10/Subcaves | Learned location of Zion (-7) 1267 | -10/Subcaves | Met a Zionite searching for "candidates" 1294 | -10/Subcaves | Learned location of Storage (-7) 1416 | -10/Subcaves | Core integrity fell below 20% 1448 | -10/Subcaves | Shifting Twisted Machinery released Barrage Gun 1451 | -10/Subcaves | Shifting Twisted Machinery released Mak. Light Armor Plating 1742 | -10/Subcaves | Destroyed by XP-JH8(R) with Subdweller Machine Gun Last Messages --------------- 01411_ Ion Engine destroyed. 01414_ 0J-BX2(R) destroyed. 01414_ Switching to secondary target: HY-MRW(R). 01417_ Sub. Machine Gun destroyed. 01420_ HY-MRW(R) affixes Scrap Shield Fragment to Scrap Shield. 01423_ HY-MRW(R) suffers critical hit (Destroy). 01423_ HY-MRW(R) destroyed. 01428_ Acquired Sub. Power Source. 01429_ Acquired 29 matter. 01431_ Acquired 7 matter. 01434_ Acquired Battle Rifle. 01437_ Dropped Particle Gun. 01437_ Acquired Sub. Laser. Barrage Gun falls loose from the Twisted Machinery. Mak. Light Armor Plating falls loose from the Twisted Machinery. 01470_ Acquired Mak. Light Armor Plating. 01512_ 5K-U59(u) builds Twisted Machinery. 01547_ Subatomizers dissect the Sub. Optics. 01635_ Sub. Power Source shoots sparks and powers down. 01742_ Lgt. Treads destroyed. Map ----- +----------------------------------------------------+ | ????????????# #???## ### ## | | ??????? ???# ##?## ## ## | | ?????? ??????# ### ##### ## | | ?????? ####??# #??# ## | | ???????# ### ####??# ## | | ??????## ## ##?????### | | ??????# #### ####????????# | | ????? #??#####???????????# ## | | ??????? ### ##?????????????????# ### | | ??????????## ##?????????????????# ?## | | ???????????## ### ##????????????????# #?# | | ????????????# ??# ####?????????????## ###= | | ????????????## ???# R #??????????????# ##! | | ?????????????# ???## #?????????????? ##### ! | | ?????????????# ????## #???#######???? ?####%! | | ?????????????#????## R ##?##"""" #???## ## | | ??????????????????# ###"""" #????### [ | | ?????????????##???# """" #??????# | | ????????????## ### #?###### | | ????????????# ######## #### ## | | ????????????### % #??????###### " | | ??????????????# % ##???????# " " | | ??????????????# #???????## " " | | ??????????????### ## ##???????# " | | ????????????????# ?# #???????##"##### ## # | | ????????????????## ?# @##????????###???##### ## | | ????????????????? ?# ##???????????????????###? | | ????????????????## ??#####???????????????????????? | | ?????????????????# ??????????????????????????????# | | ?????????????????? ??????????????????????????????# | | ?????????????????????????????????????????????????? | | ?????????????????????????????????????????????????? | | ?????????????????????????????????????????????????? | | ?????????????????????????????????????????????????? | | ?????????????????????????????????????????????????? | | ?????????????????????????????????????????????????? | | ?????????????????????????????????????????????????? | | ?????????????????????????????????????????????????? | | ?????????????????????????????????????????????????? | | ?????????????????????????????????????????????????? | | ?????????????????????????????????????????????????? | | ?????????????????????????????????????????????????? | | ?????????????????????????????????????????????????? | | ?????????????????????????????????????????????????? | | ?????????????????????????????????????????????????? | | ?????????????????????????????????????????????????? | | ?????????????????????????????????????????????????? | | ?????????????????????????????????????????????????? | | ?????????????????????????????????????????????????? | | ?????????????????????????????????????????????????? | +----------------------------------------------------+ Best States ------------- Heat Dissipation 39 Energy Generation 15 Energy Capacity 250 Matter Stores 300 Matter Capacity 300 Sight Range 16 Terrain Scan Density 10 Armor Coverage 100 Evasion (%) 55 Recoil Reduction 2 Item Schematics ----------------- None Robot Schematics ------------------ None Fabricated ------------ Nothing Repaired ---------- Nothing Alien Tech Used ----------------- None Achievements -------------- None Challenges ------------ None Game ------ Seed GuidedPulseMonowheel Manual? 0 Play Time 00:09:46 Cumulative 399.7 hours Start 2025.07.21 @ 18:12:41 End 2025.07.21 @ 18:18:23 Sessions 1 Manual Loads 0 Difficulty Rogue Special Mode None Game No. 496 Rogue 496 Adventurer 0 Explorer 0 Win Type - Total 31 Types 15/1/9/1/1/1/0/1/1/1 Lore% 87 Gallery% 80 Achievement% 77 Wizard Run 0 Options --------- Layout 0 ASCII 0 Keyboard 0 Movement Numpad Keybinds 0 Fullscreen 1 Font 18/SmallcapsGlow Map View 76x50 Zoom Use 0% Tactical HUD 1 Map Filters NONE Filters NONE Steam 1 RUN: 289bef55-63b4-43a5-8965-ee0219944290